[Event "Titled Tuesday Blitz January 17 Early 2023"]
[White "Zemlyanskii, Ivan"]
[Black "Liimatainen, Jero"]
[WhiteFideId "24249971"]
[BlackFideId "509531"]
[WhiteElo "2300"]
[BlackElo "1948"]
[Result "1-0"]
[Round "04"]
[TimeControl "180+2"]
[Date "2023.01.17"]
[WhiteClock "0:01:15"]
[BlackClock "0:00:12"]

1. d4 {[%clk 0:03:00]}  Nf6 {[%clk 0:02:59]} 2. c4 {[%clk 0:02:59]}  e6 {[%clk 0:02:59]} 3. Nf3 {[%clk 0:02:57]}  Bb4+ {[%clk 0:02:58]} 4. Bd2 {[%clk 0:02:57]}  a5 {[%clk 0:02:57]} 5. a3 {[%clk 0:02:57]}  Bxd2+ {[%clk 0:02:56]} 6. Qxd2 {[%clk 0:02:58]}  O-O {[%clk 0:02:44]} 7. Nc3 {[%clk 0:02:58]}  d5 {[%clk 0:02:44]} 8. e3 {[%clk 0:02:56]}  c6 {[%clk 0:01:53]} 9. Rc1 {[%clk 0:02:53]}  Nbd7 {[%clk 0:01:49]} 10. Bd3 {[%clk 0:02:53]}  dxc4 {[%clk 0:01:49]} 11. Bxc4 {[%clk 0:02:54]}  b5 {[%clk 0:01:45]} 12. Bd3 {[%clk 0:02:54]}  Bb7 {[%clk 0:01:43]} 13. O-O {[%clk 0:02:54]}  h6 {[%clk 0:01:43]} 14. b4 {[%clk 0:02:49]}  axb4 {[%clk 0:01:42]} 15. axb4 {[%clk 0:02:50]}  Qe7 {[%clk 0:01:38]} 16. Ne4 {[%clk 0:02:50]}  Nxe4 {[%clk 0:01:36]} 17. Bxe4 {[%clk 0:02:51]}  Ra6 {[%clk 0:01:36]} 18. Rc2 {[%clk 0:02:32]}  Nf6 {[%clk 0:01:34]} 19. Bd3 {[%clk 0:02:31]}  Nd5 {[%clk 0:01:33]} 20. Rb1 {[%clk 0:02:27]}  Rfa8 {[%clk 0:01:31]} 21. e4 {[%clk 0:02:24]}  Nb6 {[%clk 0:01:20]} 22. h3 {[%clk 0:02:16]}  Ra1 {[%clk 0:01:13]} 23. Rxa1 {[%clk 0:01:52]}  Rxa1+ {[%clk 0:01:11]} 24. Kh2 {[%clk 0:01:53]}  Ra4 {[%clk 0:00:39]} 25. Rb2 {[%clk 0:01:44]}  g6 {[%clk 0:00:28]} 26. Qxh6 {[%clk 0:01:37]}  Qf8 {[%clk 0:00:19]} 27. Qh4 {[%clk 0:01:31]}  Nc4 {[%clk 0:00:16]} 28. Bxc4 {[%clk 0:01:29]}  bxc4 {[%clk 0:00:16]} 29. Ne5 {[%clk 0:01:30]}  Qd6 {[%clk 0:00:13]} 30. Qf6 {[%clk 0:01:26]}  c3 {[%clk 0:00:12]} 31. Qxf7+ {[%clk 0:01:18]}  Kh8 {[%clk 0:00:11]} 32. Qf6+ {[%clk 0:01:14]}  Kg8 {[%clk 0:00:11]} 33. Qxg6+ {[%clk 0:01:15]}  Kf8 {[%clk 0:00:12]} 34. Qf7# {[%clk 0:01:15]} 1-0


[Site "https://www.chess.com"]

[Event "Titled Tuesday Blitz January 17 Early 2023"]
[White "Ordekalog"]
[Black "Cramling Bellon, Anna"]
[BlackFideId "32009232"]
[WhiteElo "2578"]
[BlackElo "2043"]
[Result "1-0"]
[Round "04"]
[TimeControl "180+2"]
[Date "2023.01.17"]
[WhiteClock "0:01:25"]
[BlackClock "0:00:01"]

1. e4 {[%clk 0:03:00]}  c5 {[%clk 0:02:59]} 2. d3 {[%clk 0:02:59]}  Nc6 {[%clk 0:02:58]} 3. g3 {[%clk 0:02:59]}  g6 {[%clk 0:02:58]} 4. Bg2 {[%clk 0:02:59]}  Bg7 {[%clk 0:02:59]} 5. f4 {[%clk 0:02:59]}  d6 {[%clk 0:02:58]} 6. Nf3 {[%clk 0:03:00]}  e5 {[%clk 0:02:58]} 7. O-O {[%clk 0:02:59]}  Nge7 {[%clk 0:02:59]} 8. f5 {[%clk 0:02:59]}  gxf5 {[%clk 0:02:58]} 9. Nh4 {[%clk 0:02:58]}  Nd4 {[%clk 0:02:48]} 10. c3 {[%clk 0:02:57]}  Ndc6 {[%clk 0:02:31]} 11. Qh5 {[%clk 0:02:53]}  f4 {[%clk 0:02:29]} 12. gxf4 {[%clk 0:02:52]}  Ng6 {[%clk 0:02:24]} 13. Nf5 {[%clk 0:02:47]}  Bxf5 {[%clk 0:02:23]} 14. exf5 {[%clk 0:02:47]}  Nxf4 {[%clk 0:02:20]} 15. Bxf4 {[%clk 0:02:46]}  exf4 {[%clk 0:02:20]} 16. Nd2 {[%clk 0:02:36]}  Ne5 {[%clk 0:02:02]} 17. Rae1 {[%clk 0:02:35]}  Kf8 {[%clk 0:01:15]} 18. Bd5 {[%clk 0:02:31]}  Qf6 {[%clk 0:01:05]} 19. Ne4 {[%clk 0:02:29]}  Qh6 {[%clk 0:01:05]} 20. Qxh6 {[%clk 0:02:20]}  Bxh6 {[%clk 0:01:06]} 21. Nf6 {[%clk 0:01:55]}  f3 {[%clk 0:00:39]} 22. d4 {[%clk 0:01:44]}  Nd3 {[%clk 0:00:18]} 23. Nd7+ {[%clk 0:01:42]}  Kg8 {[%clk 0:00:17]} 24. Re7 {[%clk 0:01:40]}  f2+ {[%clk 0:00:13]} 25. Kh1 {[%clk 0:01:37]}  Ne5 {[%clk 0:00:05]} 26. dxe5 {[%clk 0:01:35]}  dxe5 {[%clk 0:00:06]} 27. Rxf2 {[%clk 0:01:31]}  Bg5 {[%clk 0:00:03]} 28. f6 {[%clk 0:01:28]}  h6 {[%clk 0:00:03]} 29. Rxf7 {[%clk 0:01:28]}  e4 {[%clk 0:00:01]} 30. Rg7# {[%clk 0:01:25]} 1-0


[Site "https://www.chess.com"]

[Event "Titled Tuesday Blitz January 17 Early 2023"]
[White "Kvaloy, Aksel Bu"]
[Black "Garrido, Denis"]
[WhiteFideId "1528815"]
[BlackFideId "601217"]
[WhiteElo "2321"]
[BlackElo "2205"]
[Result "1-0"]
[Round "04"]
[TimeControl "180+2"]
[Date "2023.01.17"]
[WhiteClock "0:00:13"]
[BlackClock "0:00:36"]

1. d4 {[%clk 0:02:56]}  Nf6 {[%clk 0:02:59]} 2. c4 {[%clk 0:02:56]}  g6 {[%clk 0:02:59]} 3. g3 {[%clk 0:02:55]}  Bg7 {[%clk 0:03:00]} 4. Bg2 {[%clk 0:02:55]}  O-O {[%clk 0:03:00]} 5. Nf3 {[%clk 0:02:56]}  d6 {[%clk 0:03:00]} 6. O-O {[%clk 0:02:56]}  c6 {[%clk 0:03:01]} 7. Nc3 {[%clk 0:02:54]}  Bf5 {[%clk 0:03:01]} 8. Re1 {[%clk 0:02:38]}  Ne4 {[%clk 0:03:01]} 9. Nh4 {[%clk 0:02:34]}  Nxc3 {[%clk 0:03:00]} 10. bxc3 {[%clk 0:02:35]}  Be6 {[%clk 0:02:55]} 11. Qd3 {[%clk 0:02:27]}  d5 {[%clk 0:02:46]} 12. cxd5 {[%clk 0:02:25]}  cxd5 {[%clk 0:02:47]} 13. Nf3 {[%clk 0:02:12]}  Nc6 {[%clk 0:02:47]} 14. Nd2 {[%clk 0:02:04]}  Bf5 {[%clk 0:02:45]} 15. e4 {[%clk 0:02:00]}  dxe4 {[%clk 0:02:46]} 16. Nxe4 {[%clk 0:02:01]}  Rc8 {[%clk 0:02:46]} 17. Qb5 {[%clk 0:01:52]}  Qb6 {[%clk 0:02:37]} 18. a4 {[%clk 0:01:45]}  Rfd8 {[%clk 0:02:33]} 19. Qxb6 {[%clk 0:01:39]}  axb6 {[%clk 0:02:33]} 20. Ba3 {[%clk 0:01:29]}  e5 {[%clk 0:02:31]} 21. Nd6 {[%clk 0:01:27]}  Rc7 {[%clk 0:02:09]} 22. Nxf5 {[%clk 0:00:52]}  gxf5 {[%clk 0:02:10]} 23. dxe5 {[%clk 0:00:50]}  Nxe5 {[%clk 0:02:02]} 24. Rab1 {[%clk 0:00:48]}  Nc4 {[%clk 0:01:49]} 25. Bb4 {[%clk 0:00:44]}  Rcd7 {[%clk 0:01:36]} 26. h4 {[%clk 0:00:28]}  f4 {[%clk 0:01:09]} 27. Bh3 {[%clk 0:00:24]}  Rd3 {[%clk 0:01:04]} 28. Bf5 {[%clk 0:00:24]}  Nd2 {[%clk 0:00:54]} 29. Bxd3 {[%clk 0:00:23]}  Nf3+ {[%clk 0:00:54]} 30. Kf1 {[%clk 0:00:22]}  Nxe1 {[%clk 0:00:53]} 31. Be4 {[%clk 0:00:21]}  fxg3 {[%clk 0:00:41]} 32. fxg3 {[%clk 0:00:19]}  Re8 {[%clk 0:00:36]} 33. Rxe1 {[%clk 0:00:13]} 1-0


[Site "https://www.chess.com"]

[Event "Titled Tuesday Blitz January 17 Early 2023"]
[White "Bambino Filho, Antonio Carlos"]
[Black "Cueto, Jonny"]
[WhiteFideId "2113163"]
[BlackFideId "3300145"]
[WhiteElo "2144"]
[BlackElo "2122"]
[Result "0-1"]
[Round "04"]
[TimeControl "180+2"]
[Date "2023.01.17"]
[WhiteClock "0:00:03"]
[BlackClock "0:00:03"]

1. e4 {[%clk 0:03:00]}  e6 {[%clk 0:02:55]} 2. Nc3 {[%clk 0:02:58]}  d5 {[%clk 0:02:56]} 3. Nf3 {[%clk 0:02:59]}  Nf6 {[%clk 0:02:56]} 4. e5 {[%clk 0:02:49]}  Nfd7 {[%clk 0:02:55]} 5. d4 {[%clk 0:02:50]}  c5 {[%clk 0:02:56]} 6. Bg5 {[%clk 0:02:50]}  Qb6 {[%clk 0:02:49]} 7. dxc5 {[%clk 0:02:48]}  Bxc5 {[%clk 0:02:48]} 8. Qd2 {[%clk 0:02:48]}  a6 {[%clk 0:02:49]} 9. Na4 {[%clk 0:02:41]}  Qc7 {[%clk 0:02:45]} 10. Nxc5 {[%clk 0:02:36]}  Nxc5 {[%clk 0:02:46]} 11. Bd3 {[%clk 0:02:34]}  Nc6 {[%clk 0:02:44]} 12. Qe2 {[%clk 0:02:10]}  Nxd3+ {[%clk 0:02:19]} 13. cxd3 {[%clk 0:02:09]}  Bd7 {[%clk 0:02:16]} 14. O-O {[%clk 0:02:08]}  Rc8 {[%clk 0:02:09]} 15. Rac1 {[%clk 0:02:08]}  O-O {[%clk 0:02:09]} 16. Be7 {[%clk 0:02:05]}  Rfe8 {[%clk 0:02:05]} 17. Bd6 {[%clk 0:02:06]}  Qb6 {[%clk 0:01:37]} 18. Qd2 {[%clk 0:01:47]}  Nd4 {[%clk 0:00:53]} 19. Ng5 {[%clk 0:01:35]}  h6 {[%clk 0:00:49]} 20. Nh3 {[%clk 0:01:33]}  Nf5 {[%clk 0:00:40]} 21. Ba3 {[%clk 0:01:31]}  Bb5 {[%clk 0:00:40]} 22. Nf4 {[%clk 0:01:28]}  Qd4 {[%clk 0:00:36]} 23. Rfe1 {[%clk 0:01:07]}  Rxc1 {[%clk 0:00:18]} 24. Qxc1 {[%clk 0:01:07]}  Bd7 {[%clk 0:00:07]} 25. b3 {[%clk 0:01:01]}  Rc8 {[%clk 0:00:07]} 26. Qd2 {[%clk 0:00:56]}  Qb6 {[%clk 0:00:04]} 27. Bb2 {[%clk 0:00:48]}  Bb5 {[%clk 0:00:04]} 28. d4 {[%clk 0:00:35]}  Ne7 {[%clk 0:00:04]} 29. Nd3 {[%clk 0:00:33]}  Nf5 {[%clk 0:00:04]} 30. Nc5 {[%clk 0:00:32]}  Qc6 {[%clk 0:00:03]} 31. Rc1 {[%clk 0:00:25]}  Qe8 {[%clk 0:00:03]} 32. a4 {[%clk 0:00:21]}  Bc6 {[%clk 0:00:02]} 33. Qe2 {[%clk 0:00:16]}  Qe7 {[%clk 0:00:02]} 34. Nd3 {[%clk 0:00:16]}  Rd8 {[%clk 0:00:02]} 35. Rc5 {[%clk 0:00:14]}  Rc8 {[%clk 0:00:02]} 36. Qc2 {[%clk 0:00:14]}  Qd7 {[%clk 0:00:02]} 37. Nb4 {[%clk 0:00:15]}  Qe8 {[%clk 0:00:02]} 38. Nd3 {[%clk 0:00:13]}  Qd7 {[%clk 0:00:02]} 39. b4 {[%clk 0:00:14]}  Ne7 {[%clk 0:00:02]} 40. b5 {[%clk 0:00:14]}  axb5 {[%clk 0:00:03]} 41. axb5 {[%clk 0:00:14]}  Bxb5 {[%clk 0:00:03]} 42. Nb4 {[%clk 0:00:13]}  Bc6 {[%clk 0:00:03]} 43. Ba3 {[%clk 0:00:12]}  Rb8 {[%clk 0:00:02]} 44. Ra5 {[%clk 0:00:12]}  Nc8 {[%clk 0:00:03]} 45. Nd3 {[%clk 0:00:11]}  b6 {[%clk 0:00:03]} 46. Ra6 {[%clk 0:00:09]}  Bb5 {[%clk 0:00:03]} 47. Ra7 {[%clk 0:00:05]}  Qxa7 {[%clk 0:00:03]} 48. Qb3 {[%clk 0:00:04]}  Bxd3 {[%clk 0:00:03]} 49. Qxd3 {[%clk 0:00:05]}  Qa5 {[%clk 0:00:02]} 50. h3 {[%clk 0:00:05]}  Qe1+ {[%clk 0:00:02]} 51. Kh2 {[%clk 0:00:05]}  Qe4 {[%clk 0:00:03]} 52. Qc3 {[%clk 0:00:04]}  Ne7 {[%clk 0:00:03]} 53. Qc7 {[%clk 0:00:05]}  Re8 {[%clk 0:00:04]} 54. Bxe7 {[%clk 0:00:05]}  Qf5 {[%clk 0:00:03]} 55. Qd7 {[%clk 0:00:05]}  Qf4+ {[%clk 0:00:03]} 56. Kg1 {[%clk 0:00:05]}  Ra8 {[%clk 0:00:03]} 57. Bb4 {[%clk 0:00:03]}  Ra1+ {[%clk 0:00:03]} 0-1


[Site "https://www.chess.com"]

[Event "Titled Tuesday Blitz January 17 Early 2023"]
[White "Ortega Ruiz, Jose Miguel"]
[Black "Broca Jimenez, Fernando"]
[WhiteFideId "2209713"]
[BlackFideId "5104742"]
[WhiteElo "2351"]
[BlackElo "2075"]
[Result "1-0"]
[Round "04"]
[TimeControl "180+2"]
[Date "2023.01.17"]
[WhiteClock "0:01:24"]
[BlackClock "0:00:11"]

1. Nf3 {[%clk 0:03:00]}  c5 {[%clk 0:02:57]} 2. h4 {[%clk 0:03:01]}  d5 {[%clk 0:02:56]} 3. h5 {[%clk 0:03:02]}  Nc6 {[%clk 0:02:56]} 4. d3 {[%clk 0:03:01]}  e5 {[%clk 0:02:56]} 5. Nc3 {[%clk 0:03:01]}  Be6 {[%clk 0:02:56]} 6. e4 {[%clk 0:03:00]}  d4 {[%clk 0:02:55]} 7. Nb1 {[%clk 0:02:57]}  Nf6 {[%clk 0:02:53]} 8. h6 {[%clk 0:02:56]}  g6 {[%clk 0:02:31]} 9. Ng5 {[%clk 0:02:55]}  Bg4 {[%clk 0:02:26]} 10. Be2 {[%clk 0:02:54]}  Bxe2 {[%clk 0:02:26]} 11. Qxe2 {[%clk 0:02:54]}  Be7 {[%clk 0:02:26]} 12. Na3 {[%clk 0:02:53]}  a6 {[%clk 0:02:24]} 13. Nc4 {[%clk 0:02:47]}  b5 {[%clk 0:02:24]} 14. Nd2 {[%clk 0:02:47]}  Qd7 {[%clk 0:02:06]} 15. a4 {[%clk 0:02:44]}  O-O {[%clk 0:02:02]} 16. O-O {[%clk 0:02:41]}  Ng4 {[%clk 0:01:52]} 17. Ngf3 {[%clk 0:02:34]}  Nxh6 {[%clk 0:01:51]} 18. axb5 {[%clk 0:02:32]}  axb5 {[%clk 0:01:50]} 19. Rxa8 {[%clk 0:02:33]}  Rxa8 {[%clk 0:01:50]} 20. Nc4 {[%clk 0:02:34]}  Ng4 {[%clk 0:01:42]} 21. Nb6 {[%clk 0:02:33]}  Qa7 {[%clk 0:01:35]} 22. Nxa8 {[%clk 0:02:33]}  Qxa8 {[%clk 0:01:36]} 23. Nxd4 {[%clk 0:02:32]}  Nxd4 {[%clk 0:01:34]} 24. Qxg4 {[%clk 0:02:32]}  Nxc2 {[%clk 0:01:34]} 25. Qd7 {[%clk 0:02:30]}  Bf8 {[%clk 0:01:30]} 26. Qxb5 {[%clk 0:02:26]}  Nd4 {[%clk 0:01:30]} 27. Qd7 {[%clk 0:02:26]}  Qa6 {[%clk 0:01:24]} 28. Bg5 {[%clk 0:02:23]}  Qxd3 {[%clk 0:01:20]} 29. Qd8 {[%clk 0:02:21]}  Qxe4 {[%clk 0:01:14]} 30. Bh6 {[%clk 0:02:06]}  Ne6 {[%clk 0:01:09]} 31. Qc8 {[%clk 0:02:06]}  Qh4 {[%clk 0:01:07]} 32. Bxf8 {[%clk 0:02:04]}  Nxf8 {[%clk 0:01:07]} 33. Qxc5 {[%clk 0:02:04]}  Qf4 {[%clk 0:01:06]} 34. Rc1 {[%clk 0:02:01]}  Ne6 {[%clk 0:01:05]} 35. Qc8+ {[%clk 0:02:00]}  Kg7 {[%clk 0:01:05]} 36. Qc3 {[%clk 0:01:55]}  Nd4 {[%clk 0:01:05]} 37. Re1 {[%clk 0:01:56]}  Qg5 {[%clk 0:00:59]} 38. Re3 {[%clk 0:01:49]}  Qh5 {[%clk 0:00:55]} 39. Qc5 {[%clk 0:01:32]}  Qd1+ {[%clk 0:00:44]} 40. Kh2 {[%clk 0:01:32]}  Qh5+ {[%clk 0:00:44]} 41. Rh3 {[%clk 0:01:32]}  Qf5 {[%clk 0:00:42]} 42. b4 {[%clk 0:01:27]}  Qf4+ {[%clk 0:00:30]} 43. Kg1 {[%clk 0:01:19]}  Qe4 {[%clk 0:00:18]} 44. Re3 {[%clk 0:01:16]}  Qb1+ {[%clk 0:00:17]} 45. Kh2 {[%clk 0:01:17]}  f6 {[%clk 0:00:15]} 46. Qe7+ {[%clk 0:01:17]}  Kh6 {[%clk 0:00:14]} 47. Qxf6 {[%clk 0:01:18]}  Qf5 {[%clk 0:00:10]} 48. Qxf5 {[%clk 0:01:18]}  gxf5 {[%clk 0:00:09]} 49. Rxe5 {[%clk 0:01:19]}  Kg6 {[%clk 0:00:07]} 50. Rd5 {[%clk 0:01:19]}  Ne6 {[%clk 0:00:07]} 51. b5 {[%clk 0:01:19]}  Kf6 {[%clk 0:00:07]} 52. Rd6 {[%clk 0:01:20]}  Ke7 {[%clk 0:00:07]} 53. Rxe6+ {[%clk 0:01:20]}  Kxe6 {[%clk 0:00:08]} 54. Kg3 {[%clk 0:01:21]}  Kd6 {[%clk 0:00:07]} 55. Kf4 {[%clk 0:01:21]}  Kc5 {[%clk 0:00:08]} 56. Kxf5 {[%clk 0:01:22]}  Kxb5 {[%clk 0:00:09]} 57. Kg5 {[%clk 0:01:23]}  Kc6 {[%clk 0:00:10]} 58. Kh6 {[%clk 0:01:23]}  Kd5 {[%clk 0:00:10]} 59. Kxh7 {[%clk 0:01:24]}  Ke5 {[%clk 0:00:11]} 60. Kg6 {[%clk 0:01:24]} 1-0


[Site "https://www.chess.com"]

[Event "Titled Tuesday Blitz January 17 Early 2023"]
[White "Smietanska, Wiktoria"]
[Black "Seletsky, Grigory"]
[WhiteFideId "21869359"]
[BlackFideId "14112191"]
[WhiteElo "1936"]
[BlackElo "2259"]
[Result "0-1"]
[Round "04"]
[TimeControl "180+2"]
[Date "2023.01.17"]
[WhiteClock "0:00:03"]
[BlackClock "0:00:47"]

1. c4 {[%clk 0:02:57]}  e5 {[%clk 0:02:58]} 2. Nc3 {[%clk 0:02:57]}  Nc6 {[%clk 0:02:59]} 3. Nf3 {[%clk 0:02:51]}  f5 {[%clk 0:02:59]} 4. g3 {[%clk 0:02:49]}  Nf6 {[%clk 0:02:58]} 5. Bg2 {[%clk 0:02:48]}  Bc5 {[%clk 0:02:56]} 6. Nxe5 {[%clk 0:02:21]}  Bxf2+ {[%clk 0:02:54]} 7. Kxf2 {[%clk 0:02:20]}  Nxe5 {[%clk 0:02:55]} 8. b3 {[%clk 0:02:14]}  O-O {[%clk 0:02:53]} 9. d4 {[%clk 0:02:14]}  Ng6 {[%clk 0:02:45]} 10. Rf1 {[%clk 0:02:12]}  c6 {[%clk 0:02:39]} 11. Kg1 {[%clk 0:02:10]}  d5 {[%clk 0:02:40]} 12. Bg5 {[%clk 0:02:03]}  Be6 {[%clk 0:02:39]} 13. h4 {[%clk 0:01:50]}  h6 {[%clk 0:02:37]} 14. Bd2 {[%clk 0:01:40]}  Ne4 {[%clk 0:02:36]} 15. Nxe4 {[%clk 0:01:35]}  fxe4 {[%clk 0:02:35]} 16. e3 {[%clk 0:01:32]}  Qd6 {[%clk 0:02:33]} 17. Qe1 {[%clk 0:01:20]}  Bg4 {[%clk 0:02:27]} 18. Rxf8+ {[%clk 0:01:14]}  Nxf8 {[%clk 0:02:25]} 19. Bb4 {[%clk 0:01:12]}  Qd7 {[%clk 0:02:24]} 20. Qf2 {[%clk 0:01:08]}  Ne6 {[%clk 0:02:23]} 21. Rf1 {[%clk 0:01:06]}  a5 {[%clk 0:02:21]} 22. Ba3 {[%clk 0:01:05]}  a4 {[%clk 0:02:20]} 23. Bb4 {[%clk 0:00:57]}  axb3 {[%clk 0:02:19]} 24. axb3 {[%clk 0:00:58]}  b5 {[%clk 0:02:17]} 25. cxb5 {[%clk 0:00:56]}  cxb5 {[%clk 0:02:17]} 26. Rc1 {[%clk 0:00:53]}  Rc8 {[%clk 0:02:12]} 27. Qd2 {[%clk 0:00:34]}  g5 {[%clk 0:02:01]} 28. Rxc8+ {[%clk 0:00:22]}  Qxc8 {[%clk 0:02:00]} 29. Qc3 {[%clk 0:00:21]}  Qxc3 {[%clk 0:01:54]} 30. Bxc3 {[%clk 0:00:20]}  Bd1 {[%clk 0:01:52]} 31. b4 {[%clk 0:00:18]}  Be2 {[%clk 0:01:45]} 32. Bh3 {[%clk 0:00:16]}  Nc7 {[%clk 0:01:37]} 33. Kf2 {[%clk 0:00:13]}  Bf3 {[%clk 0:01:27]} 34. hxg5 {[%clk 0:00:11]}  hxg5 {[%clk 0:01:27]} 35. Bd7 {[%clk 0:00:10]}  Kf7 {[%clk 0:01:23]} 36. Bh3 {[%clk 0:00:09]}  Ke7 {[%clk 0:01:15]} 37. Bf1 {[%clk 0:00:08]}  Kd6 {[%clk 0:01:12]} 38. Bh3 {[%clk 0:00:05]}  Kc6 {[%clk 0:01:12]} 39. Bf1 {[%clk 0:00:04]}  Ne8 {[%clk 0:01:11]} 40. Bh3 {[%clk 0:00:03]}  Nf6 {[%clk 0:01:11]} 41. Bf1 {[%clk 0:00:03]}  Ng4+ {[%clk 0:01:10]} 42. Ke1 {[%clk 0:00:02]}  Nxe3 {[%clk 0:01:11]} 43. Bd2 {[%clk 0:00:02]}  Nc2+ {[%clk 0:01:07]} 44. Kf2 {[%clk 0:00:01]}  Nxd4 {[%clk 0:00:56]} 45. Bxg5 {[%clk 0:00:01]}  Nc2 {[%clk 0:00:54]} 46. Be3 {[%clk 0:00:02]}  d4 {[%clk 0:00:54]} 47. Bd2 {[%clk 0:00:02]}  Bg4 {[%clk 0:00:48]} 48. Be2 {[%clk 0:00:03]}  e3+ {[%clk 0:00:46]} 49. Bxe3 {[%clk 0:00:03]}  dxe3+ {[%clk 0:00:47]} 0-1


[Site "https://www.chess.com"]

[Event "Titled Tuesday Blitz January 17 Early 2023"]
[White "Silva, Pedro Gil Ferreira Da"]
[Black "Kornyukov, Alexey"]
[WhiteFideId "1946102"]
[BlackFideId "4150457"]
[WhiteElo "2227"]
[BlackElo "2452"]
[Result "1-0"]
[Round "04"]
[TimeControl "180+2"]
[Date "2023.01.17"]
[WhiteClock "0:01:09"]
[BlackClock "0:00:24"]

1. c4 {[%clk 0:03:00]}  e5 {[%clk 0:02:55]} 2. Nf3 {[%clk 0:03:00]}  Nc6 {[%clk 0:02:55]} 3. Nc3 {[%clk 0:02:59]}  Bb4 {[%clk 0:02:55]} 4. g3 {[%clk 0:02:57]}  Nf6 {[%clk 0:02:55]} 5. Bg2 {[%clk 0:02:57]}  O-O {[%clk 0:02:54]} 6. O-O {[%clk 0:02:56]}  d6 {[%clk 0:02:54]} 7. d3 {[%clk 0:02:51]}  Be6 {[%clk 0:02:54]} 8. Bd2 {[%clk 0:02:51]}  Re8 {[%clk 0:02:51]} 9. a3 {[%clk 0:02:45]}  Bxc3 {[%clk 0:02:50]} 10. Bxc3 {[%clk 0:02:46]}  d5 {[%clk 0:02:51]} 11. cxd5 {[%clk 0:02:42]}  Bxd5 {[%clk 0:02:49]} 12. Rc1 {[%clk 0:02:42]}  Qd7 {[%clk 0:02:46]} 13. Re1 {[%clk 0:02:33]}  Rad8 {[%clk 0:02:44]} 14. Qa4 {[%clk 0:02:30]}  Nd4 {[%clk 0:02:40]} 15. Qxd7 {[%clk 0:02:28]}  Nxf3+ {[%clk 0:02:16]} 16. Bxf3 {[%clk 0:02:27]}  Rxd7 {[%clk 0:02:17]} 17. Bxd5 {[%clk 0:02:27]}  Rxd5 {[%clk 0:02:16]} 18. Kg2 {[%clk 0:02:15]}  c6 {[%clk 0:02:12]} 19. f3 {[%clk 0:02:11]}  h6 {[%clk 0:02:11]} 20. Kf2 {[%clk 0:02:07]}  g5 {[%clk 0:02:10]} 21. Bd2 {[%clk 0:02:04]}  Kh7 {[%clk 0:02:09]} 22. Rc4 {[%clk 0:02:04]}  Kg6 {[%clk 0:02:08]} 23. Rec1 {[%clk 0:02:03]}  h5 {[%clk 0:01:55]} 24. b4 {[%clk 0:01:57]}  a6 {[%clk 0:01:55]} 25. Rc5 {[%clk 0:01:56]}  Rxc5 {[%clk 0:01:52]} 26. Rxc5 {[%clk 0:01:57]}  Nd5 {[%clk 0:01:49]} 27. a4 {[%clk 0:01:54]}  Nb6 {[%clk 0:01:47]} 28. Ra5 {[%clk 0:01:38]}  Rd8 {[%clk 0:01:36]} 29. b5 {[%clk 0:01:31]}  cxb5 {[%clk 0:01:22]} 30. axb5 {[%clk 0:01:32]}  Nc4 {[%clk 0:00:55]} 31. dxc4 {[%clk 0:01:28]}  Rxd2 {[%clk 0:00:54]} 32. bxa6 {[%clk 0:01:27]}  bxa6 {[%clk 0:00:55]} 33. Rxa6+ {[%clk 0:01:27]}  f6 {[%clk 0:00:55]} 34. Rc6 {[%clk 0:01:21]}  Rc2 {[%clk 0:00:54]} 35. c5 {[%clk 0:01:20]}  Kf5 {[%clk 0:00:53]} 36. h3 {[%clk 0:01:19]}  Rb2 {[%clk 0:00:46]} 37. g4+ {[%clk 0:01:18]}  hxg4 {[%clk 0:00:45]} 38. hxg4+ {[%clk 0:01:19]}  Kg6 {[%clk 0:00:43]} 39. Rc8 {[%clk 0:01:19]}  Rc2 {[%clk 0:00:41]} 40. c6 {[%clk 0:01:19]}  Kg7 {[%clk 0:00:40]} 41. c7 {[%clk 0:01:19]}  Rc3 {[%clk 0:00:35]} 42. Ke1 {[%clk 0:01:14]}  Rc1+ {[%clk 0:00:33]} 43. Kd2 {[%clk 0:01:13]}  Rc5 {[%clk 0:00:32]} 44. Kd3 {[%clk 0:01:12]}  Rd5+ {[%clk 0:00:30]} 45. Ke4 {[%clk 0:01:11]}  Rd4+ {[%clk 0:00:30]} 46. Kf5 {[%clk 0:01:11]}  Rd7 {[%clk 0:00:24]} 47. Rg8+ {[%clk 0:01:09]} 1-0


[Site "https://www.chess.com"]

[Event "Titled Tuesday Blitz January 17 Early 2023"]
[White "Clawitter, Craig"]
[Black "Levitan, Caleb Levi"]
[WhiteFideId "2023105"]
[BlackFideId "14332620"]
[WhiteElo "2050"]
[BlackElo "2129"]
[Result "0-1"]
[Round "04"]
[TimeControl "180+2"]
[Date "2023.01.17"]
[WhiteClock "0:00:01"]
[BlackClock "0:00:13"]

1. e4 {[%clk 0:02:56]}  c5 {[%clk 0:02:59]} 2. Nf3 {[%clk 0:02:55]}  e6 {[%clk 0:02:59]} 3. d4 {[%clk 0:02:56]}  cxd4 {[%clk 0:02:59]} 4. Nxd4 {[%clk 0:02:56]}  a6 {[%clk 0:03:00]} 5. Bd3 {[%clk 0:02:57]}  Bc5 {[%clk 0:02:59]} 6. Nb3 {[%clk 0:02:52]}  Ba7 {[%clk 0:02:59]} 7. Nc3 {[%clk 0:02:47]}  Nc6 {[%clk 0:02:59]} 8. Qe2 {[%clk 0:02:47]}  b5 {[%clk 0:02:50]} 9. Be3 {[%clk 0:02:45]}  d6 {[%clk 0:02:47]} 10. O-O-O {[%clk 0:02:40]}  Nge7 {[%clk 0:02:43]} 11. f4 {[%clk 0:02:24]}  Bb7 {[%clk 0:02:32]} 12. e5 {[%clk 0:02:06]}  d5 {[%clk 0:02:22]} 13. Bxa7 {[%clk 0:01:49]}  Rxa7 {[%clk 0:02:18]} 14. Nc5 {[%clk 0:01:49]}  Qb6 {[%clk 0:02:14]} 15. Nxb7 {[%clk 0:01:39]}  Rxb7 {[%clk 0:02:12]} 16. f5 {[%clk 0:01:34]}  Nd4 {[%clk 0:02:02]} 17. Qg4 {[%clk 0:01:24]}  Ndxf5 {[%clk 0:01:55]} 18. Bxf5 {[%clk 0:01:21]}  Nxf5 {[%clk 0:01:36]} 19. Nxd5 {[%clk 0:01:18]}  Qc5 {[%clk 0:01:21]} 20. Rhf1 {[%clk 0:00:32]}  O-O {[%clk 0:00:51]} 21. Nf6+ {[%clk 0:00:29]}  Kh8 {[%clk 0:00:51]} 22. Nd7 {[%clk 0:00:26]}  Rxd7 {[%clk 0:00:26]} 23. Rxd7 {[%clk 0:00:24]}  Ne3 {[%clk 0:00:27]} 24. Qe2 {[%clk 0:00:08]}  Nxf1 {[%clk 0:00:26]} 25. Qxf1 {[%clk 0:00:06]}  Qe3+ {[%clk 0:00:27]} 26. Kb1 {[%clk 0:00:06]}  Qxe5 {[%clk 0:00:26]} 27. a3 {[%clk 0:00:06]}  Kg8 {[%clk 0:00:25]} 28. Qd3 {[%clk 0:00:04]}  Qxh2 {[%clk 0:00:24]} 29. Rd8 {[%clk 0:00:04]}  Qc7 {[%clk 0:00:12]} 30. Rxf8+ {[%clk 0:00:01]}  Kxf8 {[%clk 0:00:13]} 0-1


[Site "https://www.chess.com"]